Workbook

Sheet Skema 1
A1: Region Midtjylland, psykiatriske sygehuse.
B2: Skema 1: Udgifter og indtægter på sygehusene/enhederne, eksklusiv omkostningssted 0001, Fælleskonto. (1.000 kr.)
A5: Sygehus | C5: 2023 | D5: 2022 | E5: 2021 | F5: 2020 | G5: Δ2022-2023 | H5: % afvigelse | I5: Begrundelse
A6: Region Midt, Voksen psykiatrien
A7: Region Midt, Voksen psykiatrien | B7: Hovedart 1: Lønninger | C7: 1407463.484 | D7: 1361997 | E7: 1283372.574 | F7: 1225153.773 | G7: =IF(ISERROR(C7- D7)=TRUE,"",C7 - D7) -> 45466.48355 | H7: =IF(ISERROR((((C7- D7)/D7)*100)=TRUE),"",IF((((C7- D7)/D7)*100)<-7,FIXED(((C7- D7)/D7)*100, 1,TRUE) &"%" & "▼",IF((((C7- D7)/D7)*100)>7,FIXED(((C7- D7)/D7)*100, 1,TRUE) &"%" &"▲",FIXED(((C7- D7)/D7)*100, 1,TRUE)&"%"))) -> 3,3% | I7: Normale fluktuationer
A8: Region Midt, Voksen psykiatrien | B8: Hovedart 2: Varekøb | C8: 31479.27372 | D8: 35831 | E8: 42900.59385 | F8: 49177.51073 | G8: -4351.726282 | H8: -12,1%▼ | I8: Økonomisk tilbageholdenhed
A9: Region Midt, Voksen psykiatrien | B9: Hovedart 4: Tjenesteydelser m.v. | C9: 321303.7387 | D9: 309617 | E9: 317285.1748 | F9: 285551.0777 | G9: 11686.73872 | H9: 3,8% | I9: Normale fluktuationer
A10: Region Midt, Voksen psykiatrien | B10: Hovedart 5: Tilskud og overførsler | C10: -2959.339781 | D10: -2519 | E10: 0 | F10: 5.759302883 | G10: -440.3397812 | H10: 17,5%▲ | I10: Normale fluktuationer
A11: Region Midt, Voksen psykiatrien | B11: Hovedart 6: Finansudgifter | G11: 0
A12: Region Midt, Voksen psykiatrien | B12: Hovedart 7: Indtægter | C12: -99135.35395 | D12: -108210 | E12: -113437.7457 | F12: -116851.0605 | G12: 9074.646051 | H12: -8,4%▼ | I12: Normale fluktuationer
A13: Region Midt, Voksen psykiatrien | B13: Hovedart 8: Finansindtægter | E13: 0 | F13: 0 | G13: 0
A14: Region Midt, Voksen psykiatrien | B14: Hovedart 9: Interne udgifter og indtægter | C14: 162922.9021 | D14: 149060 | E14: 135454.7655 | F14: 125361.0827 | G14: 13862.90205 | H14: 9,3%▲ | I14: Normale fluktuationer
A15: Region Midt, Voksen psykiatrien | B15: I alt | C15: =SUMIFS((C7:C14),(A7:A14),A15) -> 1821074.704 | D15: =SUMIFS((D7:D14),(A7:A14),A15) -> 1745776 | E15: =SUMIFS((E7:E14),(A7:A14),A15) -> 1665575.363 | F15: =SUMIFS((F7:F14),(A7:A14),A15) -> 1568398.143 | G15: 75298.70431 | H15: 4,3%
A16: Region Midt, Børn-unge psykiatrien | G16: 0
A17: Region Midt, Børn-unge psykiatrien | B17: Hovedart 1: Lønninger | C17: 318827.6299 | D17: 320380 | E17: 319646.5297 | F17: 310834.1948 | G17: -1552.370119 | H17: -0,5% | I17: Normale fluktuationer
A18: Region Midt, Børn-unge psykiatrien | B18: Hovedart 2: Varekøb | C18: 3559.929802 | D18: 3603 | E18: 6701.923136 | F18: 7218.924515 | G18: -43.07019825 | H18: -1,2% | I18: Økonomisk tilbageholdenhed
A19: Region Midt, Børn-unge psykiatrien | B19: Hovedart 4: Tjenesteydelser m.v. | C19: 25428.57551 | D19: 23881 | E19: 21287.17873 | F19: 18381.40018 | G19: 1547.575508 | H19: 6,5% | I19: Normale fluktuationer
A20: Region Midt, Børn-unge psykiatrien | B20: Hovedart 5: Tilskud og overførsler | C20: -572.3582188 | D20: -499 | E20: 0 | F20: 1.240697117 | G20: -73.35821878 | H20: 14,7%▲ | I20: Normale fluktuationer
A21: Region Midt, Børn-unge psykiatrien | B21: Hovedart 6: Finansudgifter | G21: 0
A22: Region Midt, Børn-unge psykiatrien | B22: Hovedart 7: Indtægter | C22: -5493.254541 | D22: -11353 | E22: -12522.51631 | F22: -13704.60772 | G22: 5859.745459 | H22: -51,6%▼ | I22: Korrektion bla. Ved mellemregional afregning
A23: Region Midt, Børn-unge psykiatrien | B23: Hovedart 8: Finansindtægter | E23: 0 | F23: 0 | G23: 0
A24: Region Midt, Børn-unge psykiatrien | B24: Hovedart 9: Interne udgifter og indtægter | C24: 10838.39924 | D24: 10141 | E24: 16618.38358 | F24: 15126.43784 | G24: 697.3992399 | H24: 6,9% | I24: Normale fluktuationer
A25: Region Midt, Børn-unge psykiatrien | B25: I alt | C25: =SUMIFS((C7:C24),(A7:A24),A25) -> 352588.9217 | D25: =SUMIFS((D7:D24),(A7:A24),A25) -> 346153 | E25: =SUMIFS((E7:E24),(A7:A24),A25) -> 351731.4988 | F25: =SUMIFS((F7:F24),(A7:A24),A25) -> 337857.5903 | G25: 6435.921671 | H25: 1,9%
A26: Ikke fordelte udgifter i Region Midt, psykiatri | G26: 0
A27: Ikke fordelte udgifter i Region Midt, psykiatri | B27: Hovedart 1: Lønninger | C27: 8695.99356 | D27: 7699 | E27: 6408.68155 | F27: 7144.91602 | G27: 996.99356 | H27: 12,9%▲ | I27: Normale fluktuationer
A28: Ikke fordelte udgifter i Region Midt, psykiatri | B28: Hovedart 2: Varekøb | C28: 139.94937 | D28: 83 | E28: 195.82956 | F28: 199.00771 | G28: 56.94937 | H28: 68,6%▲ | I28: Følger af beløbets ringe størrelse så små ændringer giver store udfald
A29: Ikke fordelte udgifter i Region Midt, psykiatri | B29: Hovedart 4: Tjenesteydelser m.v. | C29: 28975.14306 | D29: 21036 | E29: -12706.48293 | F29: -4679.55864 | G29: 7939.14306 | H29: 37,7%▲ | I29: Normale fluktuationer
A30: Ikke fordelte udgifter i Region Midt, psykiatri | B30: Hovedart 5: Tilskud og overførsler | C30: 7097.024 | D30: 6056 | E30: 3874.618 | F30: 0 | G30: 1041.024 | H30: 17,2%▲ | I30: Normale fluktuationer
A31: Ikke fordelte udgifter i Region Midt, psykiatri | B31: Hovedart 6: Finansudgifter | G31: 0
A32: Ikke fordelte udgifter i Region Midt, psykiatri | B32: Hovedart 7: Indtægter | C32: -69929.322 | D32: -34864 | E32: -22573.76409 | F32: -33097.54015 | G32: -35065.322 | H32: 100,6%▲ | I32: Skyldes hovedsageligt en lang række korrektioner, herunder mellemregional afregning.
A33: Ikke fordelte udgifter i Region Midt, psykiatri | B33: Hovedart 8: Finansindtægter | E33: 0 | F33: 0 | G33: 0
A34: Ikke fordelte udgifter i Region Midt, psykiatri | B34: Hovedart 9: Interne udgifter og indtægter | C34: 8.7751 | D34: 84 | E34: 465.19888 | F34: 7.2105 | G34: -75.2249 | H34: -89,6%▼ | I34: Følger af beløbets ringe størrelse så små ændringer giver store udfald
A35: Ikke fordelte udgifter i Region Midt, psykiatri | B35: I alt | C35: =SUMIFS((C7:C34),(A7:A34),A35) -> -25012.43691 | D35: =SUMIFS((D7:D34),(A7:A34),A35) -> 94 | E35: =SUMIFS((E7:E34),(A7:A34),A35) -> -24335.91903 | F35: =SUMIFS((F7:F34),(A7:A34),A35) -> -30425.96456 | G35: -25106.43691 | H35: -26709,0%▼

Sheet Skema 2
A1: Region Midtjylland, psykiatriske sygehuse.
B2: Skema 2: Fællesudgifter og -indtægter vedrørende sygehusene. (1.000 kr.)
A5: Sygehus | C5: 2023 | D5: 2022 | E5: 2021 | F5: 2020 | G5: Δ2022-2023 | H5: % afvigelse | I5: Begrundelse
A6: Region Midt, Voksen psykiatrien
A7: Region Midt, Voksen psykiatrien | B7: Hovedart 1: Lønninger | C7: 46743.26797 | D7: 42365 | E7: 33568.42322 | F7: 37684.79225 | G7: =IF(ISERROR(C7- D7)=TRUE,"",C7 - D7) -> 4378.267967 | H7: =IF(ISERROR((((C7- D7)/D7)*100)=TRUE),"",IF((((C7- D7)/D7)*100)<-7,FIXED(((C7- D7)/D7)*100, 1,TRUE) &"%" & "▼",IF((((C7- D7)/D7)*100)>7,FIXED(((C7- D7)/D7)*100, 1,TRUE) &"%" &"▲",FIXED(((C7- D7)/D7)*100, 1,TRUE)&"%"))) -> 10,3%▲ | I7: Se bem. fra RM koncern (PJ)
A8: Region Midt, Voksen psykiatrien | B8: Hovedart 2: Varekøb | C8: 3252.983518 | D8: 5315.499261 | E8: -2141.056078 | F8: 5893.065161 | G8: -2062.515743 | H8: -38,8%▼ | I8: Se bem. fra RM koncern (PJ)
A9: Region Midt, Voksen psykiatrien | B9: Hovedart 4: Tjenesteydelser m.v. | C9: 44541.34574 | D9: 43378.60716 | E9: 36724.38089 | F9: 38607.1948 | G9: 1162.738581 | H9: 2,7% | I9: Se bem. fra RM koncern (PJ)
A10: Region Midt, Voksen psykiatrien | B10: Hovedart 5: Tilskud og overførsler | C10: -59.36409647 | D10: 0.684314018 | G10: -60.04841049 | H10: -8775,0%▼ | I10: Se bem. fra RM koncern (PJ)
A11: Region Midt, Voksen psykiatrien | B11: Hovedart 6: Finansudgifter | G11: 0
A12: Region Midt, Voksen psykiatrien | B12: Hovedart 7: Indtægter | C12: -9316.438857 | D12: -15465.637 | E12: -6687.507311 | F12: -4906.984472 | G12: 6149.198143 | H12: -39,8%▼ | I12: Se bem. fra RM koncern (PJ)
A13: Region Midt, Voksen psykiatrien | B13: Hovedart 8: Finansindtægter | E13: 0 | G13: 0
A14: Region Midt, Voksen psykiatrien | B14: Hovedart 9: Interne udgifter og indtægter | C14: -26490.79714 | D14: -18154.98191 | E14: -13445.95574 | F14: -19434.43848 | G14: -8335.81523 | H14: 45,9%▲ | I14: Se bem. fra RM koncern (PJ)
A15: Region Midt, Voksen psykiatrien | B15: I alt | C15: =SUMIFS((C7:C14),(A7:A14),A15) -> 58670.99713 | D15: =SUMIFS((D7:D14),(A7:A14),A15) -> 57439.17183 | E15: =SUMIFS((E7:E14),(A7:A14),A15) -> 48018.28498 | F15: =SUMIFS((F7:F14),(A7:A14),A15) -> 57843.62926 | G15: 1231.825307 | H15: 2,1% | I15: Se bem. fra RM koncern (PJ)
A16: Region Midt, Børn-unge psykiatrien | G16: 0
A17: Region Midt, Børn-unge psykiatrien | B17: Hovedart 1: Lønninger | C17: 9050.237428 | D17: 8400.086847 | E17: 7088.884764 | F17: 8118.241747 | G17: 650.1505808 | H17: 7,7%▲ | I17: Se bem. fra RM koncern (PJ)
A18: Region Midt, Børn-unge psykiatrien | B18: Hovedart 2: Varekøb | C18: 629.8291597 | D18: 1053.958739 | E18: -452.1421727 | F18: 1269.512839 | G18: -424.1295793 | H18: -40,2%▼ | I18: Se bem. fra RM koncern (PJ)
A19: Region Midt, Børn-unge psykiatrien | B19: Hovedart 4: Tjenesteydelser m.v. | C19: 8623.910391 | D19: 8601.122839 | E19: 7755.350988 | F19: 8316.950202 | G19: 22.78755171 | H19: 0,3% | I19: Se bem. fra RM koncern (PJ)
A20: Region Midt, Børn-unge psykiatrien | B20: Hovedart 5: Tilskud og overførsler | C20: -11.49382983 | D20: 0.135685982 | G20: -11.62951581 | H20: -8570,9%▼ | I20: Se bem. fra RM koncern (PJ)
A21: Region Midt, Børn-unge psykiatrien | B21: Hovedart 6: Finansudgifter | G21: 0
A22: Region Midt, Børn-unge psykiatrien | B22: Hovedart 7: Indtægter | C22: -1803.810202 | D22: -3066.531 | E22: -1412.248897 | F22: -1057.086528 | G22: 1262.720798 | H22: -41,2%▼ | I22: Se bem. fra RM koncern (PJ)
A23: Region Midt, Børn-unge psykiatrien | B23: Hovedart 8: Finansindtægter | E23: 0 | G23: 0
A24: Region Midt, Børn-unge psykiatrien | B24: Hovedart 9: Interne udgifter og indtægter | C24: -5129.038131 | D24: -3599.775091 | E24: -2839.478941 | F24: -4186.661524 | G24: -1529.26304 | H24: 42,5%▲ | I24: Se bem. fra RM koncern (PJ)
A25: Region Midt, Børn-unge psykiatrien | B25: I alt | C25: =SUMIFS((C7:C24),(A7:A24),A25) -> 11359.63482 | D25: =SUMIFS((D7:D24),(A7:A24),A25) -> 11388.99802 | E25: =SUMIFS((E7:E24),(A7:A24),A25) -> 10140.36574 | F25: =SUMIFS((F7:F24),(A7:A24),A25) -> 12460.95674 | G25: -29.36320482 | H25: -0,3% | I25: Se bem. fra RM koncern (PJ)
A26: Ikke fordelte udgifter i Region Midt, psykiatri | G26: 0
A27: Ikke fordelte udgifter i Region Midt, psykiatri | B27: Hovedart 1: Lønninger | F27: 0 | G27: 0
A28: Ikke fordelte udgifter i Region Midt, psykiatri | B28: Hovedart 2: Varekøb | G28: 0
A29: Ikke fordelte udgifter i Region Midt, psykiatri | B29: Hovedart 4: Tjenesteydelser m.v. | G29: 0
A30: Ikke fordelte udgifter i Region Midt, psykiatri | B30: Hovedart 5: Tilskud og overførsler | G30: 0
A31: Ikke fordelte udgifter i Region Midt, psykiatri | B31: Hovedart 6: Finansudgifter | G31: 0
A32: Ikke fordelte udgifter i Region Midt, psykiatri | B32: Hovedart 7: Indtægter | G32: 0
A33: Ikke fordelte udgifter i Region Midt, psykiatri | B33: Hovedart 8: Finansindtægter | G33: 0
A34: Ikke fordelte udgifter i Region Midt, psykiatri | B34: Hovedart 9: Interne udgifter og indtægter | G34: 0
A35: Ikke fordelte udgifter i Region Midt, psykiatri | B35: I alt | C35: =SUMIFS((C7:C34),(A7:A34),A35) -> 0 | D35: =SUMIFS((D7:D34),(A7:A34),A35) -> 0 | E35: =SUMIFS((E7:E34),(A7:A34),A35) -> 0 | F35: =SUMIFS((F7:F34),(A7:A34),A35) -> 0 | G35: 0

Sheet Skema 3
A1: Region Midtjylland, psykiatriske sygehuse.
B2: Skema 3:Regionale fællesudgifter og -indtægter. (1.000 kr.)
A5: Sygehus | C5: 2023 | D5: 2022 | E5: 2021 | F5: 2020 | G5: Δ2022-2023 | H5: % afvigelse | I5: Begrundelse
A6: Region Midt, Voksen psykiatrien
A7: Region Midt, Voksen psykiatrien | B7: 1.70.50: Andel af fællesudgifter | C7: 36228.25873 | D7: 35337.6455 | E7: 30626.66307 | F7: 31618.83607 | G7: =IF(ISERROR(C7- D7)=TRUE,"",C7 - D7) -> 890.6132323 | H7: =IF(ISERROR((((C7- D7)/D7)*100)=TRUE),"",IF((((C7- D7)/D7)*100)<-7,FIXED(((C7- D7)/D7)*100, 1,TRUE) &"%" & "▼",IF((((C7- D7)/D7)*100)>7,FIXED(((C7- D7)/D7)*100, 1,TRUE) &"%" &"▲",FIXED(((C7- D7)/D7)*100, 1,TRUE)&"%"))) -> 2,5%
A8: Region Midt, Voksen psykiatrien | B8: 1.60.40: Andel af central administration af sundhed (til og med 2019) | G8: 0
A9: Region Midt, Voksen psykiatrien | B9: 1.60.41: Andel af øvrige udgifter og indtægter | G9: 0
A10: Region Midt, Voksen psykiatrien | B10: 1.50.33: Andel af central administration af sundhed (ekskl. psykiatri) | G10: 0
A11: Region Midt, Voksen psykiatrien | B11: 1.50.35: Administration af det psykiatriske område (kun central del) | G11: 0
A12: Region Midt, Voksen psykiatrien | B12: I alt | C12: =SUMIFS((C7:C11),(A7:A11),A12) -> 36228.25873 | D12: =SUMIFS((D7:D11),(A7:A11),A12) -> 35337.6455 | E12: =SUMIFS((E7:E11),(A7:A11),A12) -> 30626.66307 | F12: =SUMIFS((F7:F11),(A7:A11),A12) -> 31618.83607 | G12: 890.6132323 | H12: 2,5%
A13: Region Midt, Børn-unge psykiatrien | G13: 0
A14: Region Midt, Børn-unge psykiatrien | B14: 1.70.50: Andel af fællesudgifter | C14: 7014.365007 | D14: 7006.758623 | E14: 6467.652167 | F14: 6811.48388 | G14: 7.606383673 | H14: 0,1%
A15: Region Midt, Børn-unge psykiatrien | B15: 1.60.40: Andel af central administration af sundhed (til og med 2019) | G15: 0
A16: Region Midt, Børn-unge psykiatrien | B16: 1.60.41: Andel af øvrige udgifter og indtægter | G16: 0
A17: Region Midt, Børn-unge psykiatrien | B17: 1.50.33: Andel af central administration af sundhed (ekskl. psykiatri) | G17: 0
A18: Region Midt, Børn-unge psykiatrien | B18: 1.50.35: Administration af det psykiatriske område (kun central del) | G18: 0
A19: Region Midt, Børn-unge psykiatrien | B19: I alt | C19: =SUMIFS((C7:C18),(A7:A18),A19) -> 7014.365007 | D19: =SUMIFS((D7:D18),(A7:A18),A19) -> 7006.758623 | E19: =SUMIFS((E7:E18),(A7:A18),A19) -> 6467.652167 | F19: =SUMIFS((F7:F18),(A7:A18),A19) -> 6811.48388 | G19: 7.606383673 | H19: 0,1%
A20: Ikke fordelte udgifter i Region Midt, psykiatri | G20: 0
A21: Ikke fordelte udgifter i Region Midt, psykiatri | B21: 1.70.50: Andel af fællesudgifter | C21: 21226.6062 | D21: 19890.78069 | E21: 19610.89017 | F21: 19691.54637 | G21: 1335.82551 | H21: 6,7%
A22: Ikke fordelte udgifter i Region Midt, psykiatri | B22: 1.60.40: Andel af central administration af sundhed (til og med 2019) | G22: 0
A23: Ikke fordelte udgifter i Region Midt, psykiatri | B23: 1.60.41: Andel af øvrige udgifter og indtægter | G23: 0
A24: Ikke fordelte udgifter i Region Midt, psykiatri | B24: 1.50.33: Andel af central administration af sundhed (ekskl. psykiatri) | G24: 0
A25: Ikke fordelte udgifter i Region Midt, psykiatri | B25: 1.50.35: Administration af det psykiatriske område (kun central del) | G25: 0
A26: Ikke fordelte udgifter i Region Midt, psykiatri | B26: I alt | C26: =SUMIFS((C7:C25),(A7:A25),A26) -> 21226.6062 | D26: =SUMIFS((D7:D25),(A7:A25),A26) -> 19890.78069 | E26: =SUMIFS((E7:E25),(A7:A25),A26) -> 19610.89017 | F26: =SUMIFS((F7:F25),(A7:A25),A26) -> 19691.54637 | G26: 1335.82551 | H26: 6,7%

Sheet Skema 4
A1: Region Midtjylland, psykiatriske sygehuse.
B2: Skema 4: Udgifter og indtægter til og fra psykiatriske afdelinger konteret på somatiske sygehuse. (1.000 kr.)
A5: Sygehus | C5: 2023 | D5: 2022 | E5: 2021 | F5: 2020 | G5: Δ2022-2023 | H5: % afvigelse | I5: Begrundelse
A6: Region Midt, Voksen psykiatrien
A7: Region Midt, Voksen psykiatrien | B7: Korrektion | G7: =IF(ISERROR(C7- D7)=TRUE,"",C7 - D7) -> 0 | H7: =IF(ISERROR((((C7- D7)/D7)*100)=TRUE),"",IF((((C7- D7)/D7)*100)<-7,FIXED(((C7- D7)/D7)*100, 1,TRUE) &"%" & "▼",IF((((C7- D7)/D7)*100)>7,FIXED(((C7- D7)/D7)*100, 1,TRUE) &"%" &"▲",FIXED(((C7- D7)/D7)*100, 1,TRUE)&"%"))) -> 
A8: Region Midt, Voksen psykiatrien | B8: Lønudg. på psyk. afd.,somatiske sygehuse | G8: 0
A9: Region Midt, Voksen psykiatrien | B9: Øvrige udg. til psyk. afd.,somatiske sygehuse | G9: 0
A10: Region Midt, Voksen psykiatrien | B10: I alt | C10: =SUMIFS((C7:C9),(A7:A9),A10) -> 0 | D10: =SUMIFS((D7:D9),(A7:A9),A10) -> 0 | E10: =SUMIFS((E7:E9),(A7:A9),A10) -> 0 | F10: =SUMIFS((F7:F9),(A7:A9),A10) -> 0 | G10: 0
A11: Region Midt, Børn-unge psykiatrien | G11: 0
A12: Region Midt, Børn-unge psykiatrien | B12: Korrektion | G12: 0
A13: Region Midt, Børn-unge psykiatrien | B13: Lønudg. på psyk. afd.,somatiske sygehuse | G13: 0
A14: Region Midt, Børn-unge psykiatrien | B14: Øvrige udg. til psyk. afd.,somatiske sygehuse | G14: 0
A15: Region Midt, Børn-unge psykiatrien | B15: I alt | C15: =SUMIFS((C7:C14),(A7:A14),A15) -> 0 | D15: =SUMIFS((D7:D14),(A7:A14),A15) -> 0 | E15: =SUMIFS((E7:E14),(A7:A14),A15) -> 0 | F15: =SUMIFS((F7:F14),(A7:A14),A15) -> 0 | G15: 0
A16: Ikke fordelte udgifter i Region Midt, psykiatri | G16: 0
A17: Ikke fordelte udgifter i Region Midt, psykiatri | B17: Korrektion | G17: 0
A18: Ikke fordelte udgifter i Region Midt, psykiatri | B18: Lønudg. på psyk. afd.,somatiske sygehuse | G18: 0
A19: Ikke fordelte udgifter i Region Midt, psykiatri | B19: Øvrige udg. til psyk. afd.,somatiske sygehuse | G19: 0
A20: Ikke fordelte udgifter i Region Midt, psykiatri | B20: I alt | C20: =SUMIFS((C7:C19),(A7:A19),A20) -> 0 | D20: =SUMIFS((D7:D19),(A7:A19),A20) -> 0 | E20: =SUMIFS((E7:E19),(A7:A19),A20) -> 0 | F20: =SUMIFS((F7:F19),(A7:A19),A20) -> 0 | G20: 0

Sheet Skema 5
A1: Region Midtjylland, psykiatriske sygehuse.
B2: Skema 5: Leasing- og huslejeudgifter. (1.000 kr.)
A5: Sygehus | C5: 2023 | D5: 2022 | E5: 2021 | F5: 2020 | G5: Δ2022-2023 | H5: % afvigelse | I5: Begrundelse
A6: Region Midt, Voksen psykiatrien
A7: Region Midt, Voksen psykiatrien | B7: Andre udgifter | G7: =IF(ISERROR(C7- D7)=TRUE,"",C7 - D7) -> 0 | H7: =IF(ISERROR((((C7- D7)/D7)*100)=TRUE),"",IF((((C7- D7)/D7)*100)<-7,FIXED(((C7- D7)/D7)*100, 1,TRUE) &"%" & "▼",IF((((C7- D7)/D7)*100)>7,FIXED(((C7- D7)/D7)*100, 1,TRUE) &"%" &"▲",FIXED(((C7- D7)/D7)*100, 1,TRUE)&"%"))) -> 
A8: Region Midt, Voksen psykiatrien | B8: Leasing- og lejeudgifter | C8: 1509.667107 | D8: 1040.002 | E8: 1635.324227 | F8: 2100.343 | G8: 469.6651069 | H8: 45,2%▲ | I8: Fluktuation, ringe beløbsstørrelse
A9: Region Midt, Voksen psykiatrien | B9: Huslejeudgifter | C9: 39621.45536 | D9: 35973.9719 | E9: 35214.094 | F9: 35098.938 | G9: 3647.48346 | H9: 10,1%▲ | I9: Fluktuation
A10: Region Midt, Voksen psykiatrien | B10: I alt | C10: =SUMIFS((C7:C9),(A7:A9),A10) -> 41131.12247 | D10: =SUMIFS((D7:D9),(A7:A9),A10) -> 37013.9739 | E10: =SUMIFS((E7:E9),(A7:A9),A10) -> 36849.41823 | F10: =SUMIFS((F7:F9),(A7:A9),A10) -> 37199.281 | G10: 4117.148567 | H10: 11,1%▲
A11: Region Midt, Børn-unge psykiatrien | G11: 0
A12: Region Midt, Børn-unge psykiatrien | B12: Andre udgifter | G12: 0
A13: Region Midt, Børn-unge psykiatrien | B13: Leasing- og lejeudgifter | C13: 9.952123076 | D13: 30.61271017 | E13: 43.26877277 | F13: 39.056 | G13: -20.66058709 | H13: -67,5%▼ | I13: Fluktuation, ringe beløbsstørrelse
A14: Region Midt, Børn-unge psykiatrien | B14: Huslejeudgifter | D14: 164.42421 | E14: 389.889 | F14: 422.935 | G14: -164.42421 | H14: -100,0%▼ | I14: Ingen udgifter i 2023
A15: Region Midt, Børn-unge psykiatrien | B15: I alt | C15: =SUMIFS((C7:C14),(A7:A14),A15) -> 9.952123076 | D15: =SUMIFS((D7:D14),(A7:A14),A15) -> 195.0369202 | E15: =SUMIFS((E7:E14),(A7:A14),A15) -> 433.1577728 | F15: =SUMIFS((F7:F14),(A7:A14),A15) -> 461.991 | G15: -185.0847971 | H15: -94,9%▼
A16: Ikke fordelte udgifter i Region Midt, psykiatri | G16: 0
A17: Ikke fordelte udgifter i Region Midt, psykiatri | B17: Andre udgifter | F17: 0 | G17: 0
A18: Ikke fordelte udgifter i Region Midt, psykiatri | B18: Leasing- og lejeudgifter | C18: 0 | F18: 0 | G18: 0
A19: Ikke fordelte udgifter i Region Midt, psykiatri | B19: Huslejeudgifter | C19: 5001.75341 | D19: 4289.63558 | E19: 2787.256 | F19: 2883.81992 | G19: 712.11783 | H19: 16,6%▲ | I19: Fluktuation, ringe beløbsstørrelse
A20: Ikke fordelte udgifter i Region Midt, psykiatri | B20: I alt | C20: =SUMIFS((C7:C19),(A7:A19),A20) -> 5001.75341 | D20: =SUMIFS((D7:D19),(A7:A19),A20) -> 4289.63558 | E20: =SUMIFS((E7:E19),(A7:A19),A20) -> 2787.256 | F20: =SUMIFS((F7:F19),(A7:A19),A20) -> 2883.81992 | G20: 712.11783 | H20: 16,6%▲

Sheet Skema 6
A1: Region Midtjylland, psykiatriske sygehuse.
B2: Skema 6: Udgifter til andet end patientbehandling. (1.000 kr.)
A5: Sygehus | C5: 2023 | D5: 2022 | E5: 2021 | F5: 2020 | G5: Δ2022-2023 | H5: % afvigelse | I5: Begrundelse
A6: Region Midt, Voksen psykiatrien
A7: Region Midt, Voksen psykiatrien | B7: Skema 6.1: Center for voldsramte (Bispebjerg) | G7: =IF(ISERROR(C7- D7)=TRUE,"",C7 - D7) -> 0 | H7: =IF(ISERROR((((C7- D7)/D7)*100)=TRUE),"",IF((((C7- D7)/D7)*100)<-7,FIXED(((C7- D7)/D7)*100, 1,TRUE) &"%" & "▼",IF((((C7- D7)/D7)*100)>7,FIXED(((C7- D7)/D7)*100, 1,TRUE) &"%" &"▲",FIXED(((C7- D7)/D7)*100, 1,TRUE)&"%"))) -> 
A8: Region Midt, Voksen psykiatrien | B8: Skema 6.2: Ventilatørbistand i hjemmet, respiratorpatienter | G8: 0
A9: Region Midt, Voksen psykiatrien | B9: Skema 6.3: Blodprøvetagning i eget hjem | G9: 0
A10: Region Midt, Voksen psykiatrien | B10: Skema 6.4: Psykinfo + pårørende | G10: 0
A11: Region Midt, Voksen psykiatrien | B11: Skema 6.5: Leveret udstyr til patienter i eget hjem, ilt og sonderemedier | G11: 0
A12: Region Midt, Voksen psykiatrien | B12: Skema 6.6: Montebello (Nordsjællands Hospitaler) | G12: 0
A13: Region Midt, Voksen psykiatrien | B13: Skema 6.7: Satspulje korrektioner mellem år | G13: 0
A14: Region Midt, Voksen psykiatrien | B14: Skema 6.8: Klinisk farmakologisk rådgivning af praksissektoren | G14: 0
A15: Region Midt, Voksen psykiatrien | B15: Skema 6.9: Tandregulering ifm. operation | G15: 0
A16: Region Midt, Voksen psykiatrien | B16: Skema 6.10: Giftlinjen | G16: 0
A17: Region Midt, Voksen psykiatrien | B17: Skema 6.11: Tjenestemandspensioner | G17: 0
A18: Region Midt, Voksen psykiatrien | B18: Skema 6.12: Art 4.6 Betalinger til staten | G18: 0
A19: Region Midt, Voksen psykiatrien | B19: Skema 6.13: Art 4.7 Betalinger til kommuner | G19: 0
A20: Region Midt, Voksen psykiatrien | B20: Skema 6.14: Art 4.8 Betalinger til andre regioner | C20: 29021.36562 | D20: =37272767/1000 -> 37272.767 | E20: 36324.40969 | F20: 35269.35453 | G20: -8251.401379 | H20: -22,1%▼ | I20: Lavet korrektion - derfor også udgift ved skema 6.14 under ikke fordelte udgifter
A21: Region Midt, Voksen psykiatrien | B21: Skema 6.15: Art 7.6 Betalinger fra staten | C21: -3430.694 | D21: =-3234216/1000 -> -3234.216 | E21: -3482.316 | F21: -4245.46837 | G21: -196.478 | H21: 6,1% | I21: Naturlig fluktuation
A22: Region Midt, Voksen psykiatrien | B22: Skema 6.16: Art 7.7 Betalinger fra kommuner | C22: -27506.45208 | D22: =-33352206/1000 -> -33352.206 | E22: -32776.18507 | F22: -43002.5105 | G22: 5845.75392 | H22: -17,5%▼ | I22: Skyldes bl.a. ommærkning af særlige pladser - derved mindre kommunalfinansiering
A23: Region Midt, Voksen psykiatrien | B23: Skema 6.17: Art 7.8 Betalinger fra andre regioner | C23: -53428.81408 | D23: =-44124186/1000 -> -44124.186 | E23: -46610.17 | F23: -41821.342 | G23: -9304.628083 | H23: 21,1%▲ | I23: Mellemregional
A24: Region Midt, Voksen psykiatrien | B24: Skema 6.18: Betalinger til selvejende, private og udenlandske sygehuse | D24: 0 | F24: 0 | G24: 0
A25: Region Midt, Voksen psykiatrien | B25: Skema 6.19: Dækningsafgift/ejendomsskat | C25: 1525.92831 | D25: =1555712/1000 -> 1555.712 | E25: 1532.83183 | F25: 1456.32713 | G25: -29.78369 | H25: -1,9% | I25: Naturlig fluktuation
A26: Region Midt, Voksen psykiatrien | B26: Skema 6.20: Forsikringer/erstatninger | C26: 312.985 | D26: =628472/1000 -> 628.472 | E26: 566.932 | F26: 336.045 | G26: -315.487 | H26: -50,2%▼ | I26: Naturlig fluktuation
A27: Region Midt, Voksen psykiatrien | B27: Skema 6.21: Vederlagsfri Lab. –ydelser og andre ydelser til praksissektoren | G27: 0
A28: Region Midt, Voksen psykiatrien | B28: Skema 6.22: Patienttransport | C28: 20.98142 | D28: 43.992 | E28: 179.012 | F28: 117.67928 | G28: -23.01058 | H28: -52,3%▼ | I28: Naturlig fluktuation
A29: Region Midt, Voksen psykiatrien | B29: Skema 6.23: Serviceydelser til/fra andre institutioner eller sygehuse udenfor regionen | G29: 0
A30: Region Midt, Voksen psykiatrien | B30: Skema 6.24: Udgifter til eksternt finansierede forskning | G30: 0
A31: Region Midt, Voksen psykiatrien | B31: Skema 6.25: Forebyggelse rettet mod praksissektoren og kommuner | G31: 0
A32: Region Midt, Voksen psykiatrien | B32: Skema 6.26: Praksisreservelæger | G32: 0
A33: Region Midt, Voksen psykiatrien | B33: Skema 6.27: Præhospital | G33: 0
A34: Region Midt, Voksen psykiatrien | B34: Skema 6.28: Udgifter til Danske Regioner (Kontigent, MedCom, Fællesproj.) | C34: 585.7257271 | D34: =849571/1000 -> 849.571 | E34: 928 | F34: 820.50642 | G34: -263.8452729 | H34: -31,1%▼ | I34: Lavet korrektion ifht. LUP - andel fordelt til Børne- og ungdomspsykiatrien
A35: Region Midt, Voksen psykiatrien | B35: Skema 6.29: Hospice | G35: 0
A36: Region Midt, Voksen psykiatrien | B36: Skema 6.30: Konsulenter(praksis) | G36: 0
A37: Region Midt, Voksen psykiatrien | B37: Skema 6.31: Videnskabsetisk Komité | G37: 0
A38: Region Midt, Voksen psykiatrien | B38: Skema 6.32: Tolkebistand | C38: 1542.52099 | D38: =1421287/1000 -> 1421.287 | E38: 2042.252 | F38: 2507.67688 | G38: 121.23399 | H38: 8,5%▲ | I38: Naturlig fluktuation
A39: Region Midt, Voksen psykiatrien | B39: Skema 6.33: Dansk Center for Partikelterapi | G39: =IF(ISERROR(C39- D39)=TRUE,"",C39 - D39) -> 0 | H39: =IF(ISERROR((((C39- D39)/D39)*100)=TRUE),"",IF((((C39- D39)/D39)*100)<-7,FIXED(((C39- D39)/D39)*100, 1,TRUE) &"%" & "▼",IF((((C39- D39)/D39)*100)>7,FIXED(((C39- D39)/D39)*100, 1,TRUE) &"%" &"▲",FIXED(((C39- D39)/D39)*100, 1,TRUE)&"%"))) -> 
A40: Region Midt, Voksen psykiatrien | B40: Skema 6.34: Politisk organisation – overførte udgifter fra funktion 4.10.01, 4.10.02 og 4.10.04 | G40: 0
A41: Region Midt, Voksen psykiatrien | B41: Skema 6.35: Øvrige udgifter, Region Sjælland | G41: 0
A42: Region Midt, Voksen psykiatrien | B42: Skema 6.36: Sundhedsydelser ifm. specialsektor | G42: 0
A43: Region Midt, Voksen psykiatrien | B43: Skema 6.37: Udgifter til primær sundhed fra skema 2 | G43: 0
A44: Region Midt, Voksen psykiatrien | B44: Skema 6.38: Udgifter til primær sundhed fra skema 3 | G44: 0
A45: Region Midt, Voksen psykiatrien | B45: Skema 6.39: Særlige udgifter ifm. COVID-19 | G45: 0
A46: Region Midt, Voksen psykiatrien | B46: Skema 6.40: Udleveret udstyr/tilbehør ifm. cochlear implantater | G46: 0
A47: Region Midt, Voksen psykiatrien | B47: Skema 6.41: Luxturna-behandling, Rigshospitalet | G47: 0
A48: Region Midt, Voksen psykiatrien | B48: Skema 6.42: Udleveret medicin | G48: 0
A49: Region Midt, Voksen psykiatrien | B49: Skema 6.43: Udgifter ifm. sundhedsklynger | G49: 0
A50: Region Midt, Voksen psykiatrien | B50: Skema 6.44: Ukrainske patienter under særlov eller asyl | G50: 0
A51: Region Midt, Voksen psykiatrien | B51: Skema 6.45: Udgifter ifm. de særlige pladser i psykiatrien | C51: 28989.16401 | G51: 28989.16401 | I51: Ny i DTD 2023
A52: Region Midt, Voksen psykiatrien | B52: Skema 6.46: Sikringsafdelingen, Region Sjælland | G52: 0
A53: Region Midt, Voksen psykiatrien | B53: Skema 6.47: Øvrige (Kan kun benyttes efter aftale med Sundhedsdatastyrelsen) | G53: 0
A54: Region Midt, Voksen psykiatrien | B54: Lukkede poster (må kun bruges af Sundhedsdatastyrelsen) | G54: 0
A55: Region Midt, Voksen psykiatrien | B55: I alt | C55: =SUMIFS((C7:C54),(A7:A54),A55) -> -22367.28908 | D55: =SUMIFS((D7:D54),(A7:A54),A55) -> -38938.807 | E55: =SUMIFS((E7:E54),(A7:A54),A55) -> -41295.23355 | F55: =SUMIFS((F7:F54),(A7:A54),A55) -> -48561.73163 | G55: 16571.51792 | H55: -42,6%▼
A56: Region Midt, Børn-unge psykiatrien | G56: 0
A57: Region Midt, Børn-unge psykiatrien | B57: Skema 6.1: Center for voldsramte (Bispebjerg) | G57: 0
A58: Region Midt, Børn-unge psykiatrien | B58: Skema 6.2: Ventilatørbistand i hjemmet, respiratorpatienter | G58: 0
A59: Region Midt, Børn-unge psykiatrien | B59: Skema 6.3: Blodprøvetagning i eget hjem | G59: 0
A60: Region Midt, Børn-unge psykiatrien | B60: Skema 6.4: Psykinfo + pårørende | G60: 0
A61: Region Midt, Børn-unge psykiatrien | B61: Skema 6.5: Leveret udstyr til patienter i eget hjem, ilt og sonderemedier | G61: 0
A62: Region Midt, Børn-unge psykiatrien | B62: Skema 6.6: Montebello (Nordsjællands Hospitaler) | G62: 0
A63: Region Midt, Børn-unge psykiatrien | B63: Skema 6.7: Satspulje korrektioner mellem år | G63: 0
A64: Region Midt, Børn-unge psykiatrien | B64: Skema 6.8: Klinisk farmakologisk rådgivning af praksissektoren | G64: 0
A65: Region Midt, Børn-unge psykiatrien | B65: Skema 6.9: Tandregulering ifm. operation | G65: 0
A66: Region Midt, Børn-unge psykiatrien | B66: Skema 6.10: Giftlinjen | G66: 0
A67: Region Midt, Børn-unge psykiatrien | B67: Skema 6.11: Tjenestemandspensioner | G67: 0
A68: Region Midt, Børn-unge psykiatrien | B68: Skema 6.12: Art 4.6 Betalinger til staten | G68: 0
A69: Region Midt, Børn-unge psykiatrien | B69: Skema 6.13: Art 4.7 Betalinger til kommuner | G69: 0
A70: Region Midt, Børn-unge psykiatrien | B70: Skema 6.14: Art 4.8 Betalinger til andre regioner | C70: 1193.813639 | D70: =1205889/1000 -> 1205.889 | E70: 1149.65974 | F70: 800.6109 | G70: -12.07536085 | H70: -1,0% | I70: Naturlig fluktuation
A71: Region Midt, Børn-unge psykiatrien | B71: Skema 6.15: Art 7.6 Betalinger fra staten | D71: 0 | G71: =IF(ISERROR(C71- D71)=TRUE,"",C71 - D71) -> 0 | H71: =IF(ISERROR((((C71- D71)/D71)*100)=TRUE),"",IF((((C71- D71)/D71)*100)<-7,FIXED(((C71- D71)/D71)*100, 1,TRUE) &"%" & "▼",IF((((C71- D71)/D71)*100)>7,FIXED(((C71- D71)/D71)*100, 1,TRUE) &"%" &"▲",FIXED(((C71- D71)/D71)*100, 1,TRUE)&"%"))) -> 
A72: Region Midt, Børn-unge psykiatrien | B72: Skema 6.16: Art 7.7 Betalinger fra kommuner | D72: 0 | G72: 0
A73: Region Midt, Børn-unge psykiatrien | B73: Skema 6.17: Art 7.8 Betalinger fra andre regioner | C73: -3519.887917 | D73: =-7057630/1000 -> -7057.63 | E73: -6844.475 | F73: -8062.866 | G73: 3537.742083 | H73: -50,1%▼ | I73: Lavet korrektion til hvordan det bogføres
A74: Region Midt, Børn-unge psykiatrien | B74: Skema 6.18: Betalinger til selvejende, private og udenlandske sygehuse | C74: 1260.95491 | D74: =1353370/1000 -> 1353.37 | E74: 138.08 | F74: 1085.70006 | G74: -92.41509 | H74: -6,8% | I74: Naturlig fluktuation
A75: Region Midt, Børn-unge psykiatrien | B75: Skema 6.19: Dækningsafgift/ejendomsskat | C75: 107.773 | D75: =111266/1000 -> 111.266 | E75: 108.309 | F75: 107.451 | G75: -3.493 | H75: -3,1% | I75: Naturlig fluktuation
A76: Region Midt, Børn-unge psykiatrien | B76: Skema 6.20: Forsikringer/erstatninger | C76: 19.353 | D76: =37806/1000 -> 37.806 | E76: 56.929 | F76: 42.172 | G76: -18.453 | H76: -48,8%▼ | I76: Naturlig fluktuation, ringe beløb størrelse
A77: Region Midt, Børn-unge psykiatrien | B77: Skema 6.21: Vederlagsfri Lab. –ydelser og andre ydelser til praksissektoren | G77: 0
A78: Region Midt, Børn-unge psykiatrien | B78: Skema 6.22: Patienttransport | F78: 0.22862 | G78: 0
A79: Region Midt, Børn-unge psykiatrien | B79: Skema 6.23: Serviceydelser til/fra andre institutioner eller sygehuse udenfor regionen | G79: 0
A80: Region Midt, Børn-unge psykiatrien | B80: Skema 6.24: Udgifter til eksternt finansierede forskning | G80: 0
A81: Region Midt, Børn-unge psykiatrien | B81: Skema 6.25: Forebyggelse rettet mod praksissektoren og kommuner | G81: 0
A82: Region Midt, Børn-unge psykiatrien | B82: Skema 6.26: Praksisreservelæger | G82: 0
A83: Region Midt, Børn-unge psykiatrien | B83: Skema 6.27: Præhospital | G83: 0
A84: Region Midt, Børn-unge psykiatrien | B84: Skema 6.28: Udgifter til Danske Regioner (Kontigent, MedCom, Fællesproj.) | C84: 113.4057829 | G84: 113.4057829 | I84: Lavet korrektion ifht. LUP - andel fordelt til BUA
A85: Region Midt, Børn-unge psykiatrien | B85: Skema 6.29: Hospice | G85: 0
A86: Region Midt, Børn-unge psykiatrien | B86: Skema 6.30: Konsulenter(praksis) | F86: 0 | G86: 0
A87: Region Midt, Børn-unge psykiatrien | B87: Skema 6.31: Videnskabsetisk Komité | F87: 0 | G87: 0
A88: Region Midt, Børn-unge psykiatrien | B88: Skema 6.32: Tolkebistand | C88: 255.26465 | D88: =283114/1000 -> 283.114 | E88: 342.693 | F88: 333.64716 | G88: -27.84935 | H88: -9,8%▼ | I88: Naturlig fluktuation
A89: Region Midt, Børn-unge psykiatrien | B89: Skema 6.33: Dansk Center for Partikelterapi | G89: 0
A90: Region Midt, Børn-unge psykiatrien | B90: Skema 6.34: Politisk organisation – overførte udgifter fra funktion 4.10.01, 4.10.02 og 4.10.04 | G90: 0
A91: Region Midt, Børn-unge psykiatrien | B91: Skema 6.35: Øvrige udgifter, Region Sjælland | G91: 0
A92: Region Midt, Børn-unge psykiatrien | B92: Skema 6.36: Sundhedsydelser ifm. specialsektor | G92: 0
A93: Region Midt, Børn-unge psykiatrien | B93: Skema 6.37: Udgifter til primær sundhed fra skema 2 | G93: 0
A94: Region Midt, Børn-unge psykiatrien | B94: Skema 6.38: Udgifter til primær sundhed fra skema 3 | G94: 0
A95: Region Midt, Børn-unge psykiatrien | B95: Skema 6.39: Særlige udgifter ifm. COVID-19 | G95: 0
A96: Region Midt, Børn-unge psykiatrien | B96: Skema 6.40: Udleveret udstyr/tilbehør ifm. cochlear implantater | G96: 0
A97: Region Midt, Børn-unge psykiatrien | B97: Skema 6.41: Luxturna-behandling, Rigshospitalet | G97: 0
A98: Region Midt, Børn-unge psykiatrien | B98: Skema 6.42: Udleveret medicin | G98: 0
A99: Region Midt, Børn-unge psykiatrien | B99: Skema 6.43: Udgifter ifm. sundhedsklynger | G99: 0
A100: Region Midt, Børn-unge psykiatrien | B100: Skema 6.44: Ukrainske patienter under særlov eller asyl | G100: 0
A101: Region Midt, Børn-unge psykiatrien | B101: Skema 6.45: Udgifter ifm. de særlige pladser i psykiatrien | G101: 0
A102: Region Midt, Børn-unge psykiatrien | B102: Skema 6.46: Sikringsafdelingen, Region Sjælland | G102: 0
A103: Region Midt, Børn-unge psykiatrien | B103: Skema 6.47: Øvrige (Kan kun benyttes efter aftale med Sundhedsdatastyrelsen) | G103: =IF(ISERROR(C103- D103)=TRUE,"",C103 - D103) -> 0 | H103: =IF(ISERROR((((C103- D103)/D103)*100)=TRUE),"",IF((((C103- D103)/D103)*100)<-7,FIXED(((C103- D103)/D103)*100, 1,TRUE) &"%" & "▼",IF((((C103- D103)/D103)*100)>7,FIXED(((C103- D103)/D103)*100, 1,TRUE) &"%" &"▲",FIXED(((C103- D103)/D103)*100, 1,TRUE)&"%"))) -> 
A104: Region Midt, Børn-unge psykiatrien | B104: Lukkede poster (må kun bruges af Sundhedsdatastyrelsen) | G104: 0
A105: Region Midt, Børn-unge psykiatrien | B105: I alt | C105: =SUMIFS((C7:C104),(A7:A104),A105) -> -569.3229349 | D105: =SUMIFS((D7:D104),(A7:A104),A105) -> -4066.185 | E105: =SUMIFS((E7:E104),(A7:A104),A105) -> -5048.80426 | F105: =SUMIFS((F7:F104),(A7:A104),A105) -> -5693.05626 | G105: 3496.862065 | H105: -86,0%▼
A106: Ikke fordelte udgifter i Region Midt, psykiatri | G106: 0
A107: Ikke fordelte udgifter i Region Midt, psykiatri | B107: Skema 6.1: Center for voldsramte (Bispebjerg) | G107: 0
A108: Ikke fordelte udgifter i Region Midt, psykiatri | B108: Skema 6.2: Ventilatørbistand i hjemmet, respiratorpatienter | G108: 0
A109: Ikke fordelte udgifter i Region Midt, psykiatri | B109: Skema 6.3: Blodprøvetagning i eget hjem | G109: 0
A110: Ikke fordelte udgifter i Region Midt, psykiatri | B110: Skema 6.4: Psykinfo + pårørende | C110: 3293.99672 | D110: =2621917/1000 -> 2621.917 | E110: 2688.625 | F110: 2708.96 | G110: 672.07972 | H110: 25,6%▲ | I110: For alvor kommet i gang med arbejdet efter COVID
A111: Ikke fordelte udgifter i Region Midt, psykiatri | B111: Skema 6.5: Leveret udstyr til patienter i eget hjem, ilt og sonderemedier | G111: 0
A112: Ikke fordelte udgifter i Region Midt, psykiatri | B112: Skema 6.6: Montebello (Nordsjællands Hospitaler) | G112: 0
A113: Ikke fordelte udgifter i Region Midt, psykiatri | B113: Skema 6.7: Satspulje korrektioner mellem år | C113: 13715.09208 | D113: =13849418/1000 -> 13849.418 | E113: -18086.58417 | F113: -13647.69918 | G113: -134.32592 | H113: -1,0% | I113: Naturlig fluktuation
A114: Ikke fordelte udgifter i Region Midt, psykiatri | B114: Skema 6.8: Klinisk farmakologisk rådgivning af praksissektoren | G114: 0
A115: Ikke fordelte udgifter i Region Midt, psykiatri | B115: Skema 6.9: Tandregulering ifm. operation | G115: 0
A116: Ikke fordelte udgifter i Region Midt, psykiatri | B116: Skema 6.10: Giftlinjen | G116: 0
A117: Ikke fordelte udgifter i Region Midt, psykiatri | B117: Skema 6.11: Tjenestemandspensioner | C117: 17149.11697 | D117: =15986215/1000 -> 15986.215 | E117: 15743.106 | F117: 16067.10516 | G117: 1162.90197 | H117: 7,3%▲ | I117: Naturlig fluktuation
A118: Ikke fordelte udgifter i Region Midt, psykiatri | B118: Skema 6.12: Art 4.6 Betalinger til staten | G118: 0
A119: Ikke fordelte udgifter i Region Midt, psykiatri | B119: Skema 6.13: Art 4.7 Betalinger til kommuner | C119: 442.478 | D119: 479 | E119: 479 | F119: 479 | G119: -36.522 | H119: -7,6%▼ | I119: Naturlig fluktuation
A120: Ikke fordelte udgifter i Region Midt, psykiatri | B120: Skema 6.14: Art 4.8 Betalinger til andre regioner | C120: 7231.46 | D120: 0 | G120: 7231.46
A121: Ikke fordelte udgifter i Region Midt, psykiatri | B121: Skema 6.15: Art 7.6 Betalinger fra staten | C121: -32359.519 | D121: =-24321566/1000 -> -24321.566 | E121: -15127.76529 | F121: -30598.86422 | G121: -8037.953 | H121: 33,0%▲ | I121: Indbetalinger af SATS pulje bevillingre er streget
A122: Ikke fordelte udgifter i Region Midt, psykiatri | B122: Skema 6.16: Art 7.7 Betalinger fra kommuner | C122: -9359.495 | D122: =-10483478/1000 -> -10483.478 | E122: -7330.383 | F122: -2941.5295 | G122: 1123.983 | H122: -10,7%▼ | I122: Naturlig fluktuation
A123: Ikke fordelte udgifter i Region Midt, psykiatri | B123: Skema 6.17: Art 7.8 Betalinger fra andre regioner | C123: -28156.464 | E123: -9.01368 | G123: -28156.464 | I123: Korrektion bl.a. mellemregional afregning
A124: Ikke fordelte udgifter i Region Midt, psykiatri | B124: Skema 6.18: Betalinger til selvejende, private og udenlandske sygehuse | D124: 0 | G124: 0
A125: Ikke fordelte udgifter i Region Midt, psykiatri | B125: Skema 6.19: Dækningsafgift/ejendomsskat | C125: 205.8439 | D125: =205959/1000 -> 205.959 | E125: 200.3699 | F125: 201.66836 | G125: -0.1151 | H125: -0,1%
A126: Ikke fordelte udgifter i Region Midt, psykiatri | B126: Skema 6.20: Forsikringer/erstatninger | C126: =13178.69753+17 -> 13195.69753 | D126: =11444398/1000 -> 11444.398 | E126: 8975.56458 | F126: 5148.17 | G126: 1751.29953 | H126: 15,3%▲ | I126: Stor arbejdsskadesag afsluttet med tilhørende udbetaling af erstatning
A127: Ikke fordelte udgifter i Region Midt, psykiatri | B127: Skema 6.21: Vederlagsfri Lab. –ydelser og andre ydelser til praksissektoren | G127: 0
A128: Ikke fordelte udgifter i Region Midt, psykiatri | B128: Skema 6.22: Patienttransport | G128: 0
A129: Ikke fordelte udgifter i Region Midt, psykiatri | B129: Skema 6.23: Serviceydelser til/fra andre institutioner eller sygehuse udenfor regionen | G129: 0
A130: Ikke fordelte udgifter i Region Midt, psykiatri | B130: Skema 6.24: Udgifter til eksternt finansierede forskning | G130: 0
A131: Ikke fordelte udgifter i Region Midt, psykiatri | B131: Skema 6.25: Forebyggelse rettet mod praksissektoren og kommuner | G131: 0
A132: Ikke fordelte udgifter i Region Midt, psykiatri | B132: Skema 6.26: Praksisreservelæger | G132: 0
A133: Ikke fordelte udgifter i Region Midt, psykiatri | B133: Skema 6.27: Præhospital | G133: 0
A134: Ikke fordelte udgifter i Region Midt, psykiatri | B134: Skema 6.28: Udgifter til Danske Regioner (Kontigent, MedCom, Fællesproj.) | C134: 2710.70447 | D134: =2567170/1000 -> 2567.17 | E134: 2500.3 | F134: 3320.7 | G134: 143.53447 | H134: 5,6% | I134: Naturlig fluktuation
A135: Ikke fordelte udgifter i Region Midt, psykiatri | B135: Skema 6.29: Hospice | G135: =IF(ISERROR(C135- D135)=TRUE,"",C135 - D135) -> 0 | H135: =IF(ISERROR((((C135- D135)/D135)*100)=TRUE),"",IF((((C135- D135)/D135)*100)<-7,FIXED(((C135- D135)/D135)*100, 1,TRUE) &"%" & "▼",IF((((C135- D135)/D135)*100)>7,FIXED(((C135- D135)/D135)*100, 1,TRUE) &"%" &"▲",FIXED(((C135- D135)/D135)*100, 1,TRUE)&"%"))) -> 
A136: Ikke fordelte udgifter i Region Midt, psykiatri | B136: Skema 6.30: Konsulenter(praksis) | C136: 1793.49435 | D136: =1834678/1000 -> 1834.678 | E136: 397.642 | F136: 345.149 | G136: -41.18365 | H136: -2,2% | I136: Naturlig fluktuation
A137: Ikke fordelte udgifter i Region Midt, psykiatri | B137: Skema 6.31: Videnskabsetisk Komité | G137: 0
A138: Ikke fordelte udgifter i Region Midt, psykiatri | B138: Skema 6.32: Tolkebistand | G138: 0
A139: Ikke fordelte udgifter i Region Midt, psykiatri | B139: Skema 6.33: Dansk Center for Partikelterapi | G139: 0
A140: Ikke fordelte udgifter i Region Midt, psykiatri | B140: Skema 6.34: Politisk organisation – overførte udgifter fra funktion 4.10.01, 4.10.02 og 4.10.04 | C140: 1349.58971 | D140: =1337359/1000 -> 1337.359 | E140: 1367.069 | F140: 1139.14257 | G140: 12.23071 | H140: 0,9% | I140: Naturlig fluktuation
A141: Ikke fordelte udgifter i Region Midt, psykiatri | B141: Skema 6.35: Øvrige udgifter, Region Sjælland | G141: 0
A142: Ikke fordelte udgifter i Region Midt, psykiatri | B142: Skema 6.36: Sundhedsydelser ifm. specialsektor | G142: 0
A143: Ikke fordelte udgifter i Region Midt, psykiatri | B143: Skema 6.37: Udgifter til primær sundhed fra skema 2 | G143: 0
A144: Ikke fordelte udgifter i Region Midt, psykiatri | B144: Skema 6.38: Udgifter til primær sundhed fra skema 3 | G144: 0
A145: Ikke fordelte udgifter i Region Midt, psykiatri | B145: Skema 6.39: Særlige udgifter ifm. COVID-19 | D145: =174229/1000 -> 174.229 | E145: 689.78408 | F145: 4160 | G145: -174.229 | H145: -100,0%▼ | I145: Ingen udgifter i 2023
A146: Ikke fordelte udgifter i Region Midt, psykiatri | B146: Skema 6.40: Udleveret udstyr/tilbehør ifm. cochlear implantater | G146: 0
A147: Ikke fordelte udgifter i Region Midt, psykiatri | B147: Skema 6.41: Luxturna-behandling, Rigshospitalet | G147: 0
A148: Ikke fordelte udgifter i Region Midt, psykiatri | B148: Skema 6.42: Udleveret medicin | G148: 0
A149: Ikke fordelte udgifter i Region Midt, psykiatri | B149: Skema 6.43: Udgifter ifm. sundhedsklynger | G149: 0
A150: Ikke fordelte udgifter i Region Midt, psykiatri | B150: Skema 6.44: Ukrainske patienter under særlov eller asyl | G150: 0
A151: Ikke fordelte udgifter i Region Midt, psykiatri | B151: Skema 6.45: Udgifter ifm. de særlige pladser i psykiatrien | G151: 0
A152: Ikke fordelte udgifter i Region Midt, psykiatri | B152: Skema 6.46: Sikringsafdelingen, Region Sjælland | G152: 0
A153: Ikke fordelte udgifter i Region Midt, psykiatri | B153: Skema 6.47: Øvrige (Kan kun benyttes efter aftale med Sundhedsdatastyrelsen) | G153: 0
A154: Ikke fordelte udgifter i Region Midt, psykiatri | B154: Lukkede poster (må kun bruges af Sundhedsdatastyrelsen) | G154: 0
A155: Ikke fordelte udgifter i Region Midt, psykiatri | B155: I alt | C155: =SUMIFS((C7:C154),(A7:A154),A155) -> -8788.00427 | D155: =SUMIFS((D7:D154),(A7:A154),A155) -> 15695.299 | E155: =SUMIFS((E7:E154),(A7:A154),A155) -> -7512.28558 | F155: =SUMIFS((F7:F154),(A7:A154),A155) -> -13618.19781 | G155: -24483.30327 | H155: -156,0%▼

Sheet Skema 7
A1: Region Midtjylland, psykiatriske sygehuse.
B2: Skema 7: Vederlagsfrie ydelser mellem sygehusene. (1.000 kr.)
A5: Sygehus | B5: 2023 | D5: 2023 | E5: 2022 | G5: 2022 | H5: 2021 | J5: 2021 | K5: 2020 | M5: 2020
B6: Leverede | C6: Modtagne | D6: Lev. - Mod. | E6: Leverede | F6: Modtagne | G6: Lev. - Mod. | H6: Leverede | I6: Modtagne | J6: Lev. - Mod. | K6: Leverede | L6: Modtagne | M6: Lev. - Mod.
A7: Region Midt, Voksen psykiatrien | C7: 35081.64913 | D7: =$B$7-$C$7 -> -35081.64913 | F7: 34532.211 | G7: =$E$7-$F$7 -> -34532.211 | I7: 42277.67 | J7: =$H$7-$I$7 -> -42277.67 | K7: 0 | L7: 49660 | M7: =$K$7-$L$7 -> -49660
A8: Region Midt, Børn-unge psykiatrien | C8: 6792.363217 | D8: =$B$8-$C$8 -> -6792.363217 | F8: 6847.057 | G8: =$E$8-$F$8 -> -6847.057 | I8: 8928.066 | J8: =$H$8-$I$8 -> -8928.066 | L8: 0 | M8: =$K$8-$L$8 -> 0
A9: Ikke fordelte udgifter i Region Midt, psykiatri | D9: =$B$9-$C$9 -> 0 | G9: =$E$9-$F$9 -> 0 | J9: =$H$9-$I$9 -> 0 | M9: =$K$9-$L$9 -> 0
A10: I alt | B10: =SUM(B7:B9) -> 0 | C10: =SUM(C7:C9) -> 41874.01234 | D10: =SUM(D7:D9) -> -41874.01234 | E10: =SUM(E7:E9) -> 0 | F10: 41379.268 | G10: -41379.268 | H10: 0 | I10: 51205.736 | J10: -51205.736 | K10: =SUM(K7:K9) -> 0 | L10: 49660 | M10: -49660
A12: NB: Afstem med somatikken

Sheet Rapport
B2: Skema 1: Udgifter og indtægter på sygehusene/enhederne, eksklusiv omkostningssted 0001, Fælleskonto. (1.000 kr.)
C3: 2023 | D3: 2022 | E3: 2021 | F3: 2020
B4: Hovedart 1: Lønninger | C4: 1734987.107 | D4: 1690076 | E4: 1609427.786 | F4: 1543132.884
B5: Hovedart 2: Varekøb | C5: 35179.15289 | D5: 39517 | E5: 49798.34655 | F5: 56595.44295
B6: Hovedart 4: Tjenesteydelser m.v. | C6: 375707.4573 | D6: 354534 | E6: 325865.8706 | F6: 299252.9193
B7: Hovedart 5: Tilskud og overførsler | C7: 3565.326 | D7: 3038 | E7: 3874.618 | F7: 7
B8: Hovedart 6: Finansudgifter | C8: 0 | D8: 0 | E8: 0 | F8: 0
B9: Hovedart 7: Indtægter | C9: -174557.9305 | D9: -154427 | E9: -148534.0261 | F9: -163653.2084
B10: Hovedart 8: Finansindtægter | C10: 0 | D10: 0 | E10: 0 | F10: 0
B11: Hovedart 9: Interne udgifter og indtægter | C11: 173770.0764 | D11: 159285 | E11: 152538.348 | F11: 140494.7311
B12: I alt | C12: 2148651.189 | D12: 2092023 | E12: 1992970.943 | F12: 1875829.769
B14: Skema 2: Fællesudgifter og -indtægter vedrørende sygehusene. (1.000 kr.)
C15: 2023 | D15: 2022 | E15: 2021 | F15: 2020
B16: Hovedart 1: Lønninger | C16: 55793.50539 | D16: 50765.08685 | E16: 40657.30798 | F16: 45803.034
B17: Hovedart 2: Varekøb | C17: 3882.812677 | D17: 6369.458 | E17: -2593.198251 | F17: 7162.578
B18: Hovedart 4: Tjenesteydelser m.v. | C18: 53165.25613 | D18: 51979.73 | E18: 44479.73188 | F18: 46924.145
B19: Hovedart 5: Tilskud og overførsler | C19: -70.85792631 | D19: 0.82 | E19: 0 | F19: 0
B20: Hovedart 6: Finansudgifter | C20: 0 | D20: 0 | E20: 0 | F20: 0
B21: Hovedart 7: Indtægter | C21: -11120.24906 | D21: -18532.168 | E21: -8099.756208 | F21: -5964.071
B22: Hovedart 8: Finansindtægter | C22: 0 | D22: 0 | E22: 0 | F22: 0
B23: Hovedart 9: Interne udgifter og indtægter | C23: -31619.83527 | D23: -21754.757 | E23: -16285.43468 | F23: -23621.1
B24: I alt | C24: 70030.63195 | D24: 68828.16984 | E24: 58158.65072 | F24: 70304.586
B26: Skema 3:Regionale fællesudgifter og -indtægter. (1.000 kr.)
C27: 2023 | D27: 2022 | E27: 2021 | F27: 2020
B28: 1.70.50: Andel af fællesudgifter | C28: 64469.22994 | D28: 62235.18481 | E28: 56705.20541 | F28: 58121.86632
B29: 1.60.40: Andel af central administration af sundhed (til og med 2019) | C29: 0 | D29: 0 | E29: 0 | F29: 0
B30: 1.60.41: Andel af øvrige udgifter og indtægter | C30: 0 | D30: 0 | E30: 0 | F30: 0
B31: 1.50.33: Andel af central administration af sundhed (ekskl. psykiatri) | C31: 0 | D31: 0 | E31: 0 | F31: 0
B32: 1.50.35: Administration af det psykiatriske område (kun central del) | C32: 0 | D32: 0 | E32: 0 | F32: 0
B33: I alt | C33: 64469.22994 | D33: 62235.18481 | E33: 56705.20541 | F33: 58121.86632
B35: Skema 4: Udgifter og indtægter til og fra psykiatriske afdelinger konteret på somatiske sygehuse. (1.000 kr.)
C36: 2023 | D36: 2022 | E36: 2021 | F36: 2020
B37: Korrektion | C37: 0 | D37: 0 | E37: 0 | F37: 0
B38: Lønudg. på psyk. afd.,somatiske sygehuse | C38: 0 | D38: 0 | E38: 0 | F38: 0
B39: Øvrige udg. til psyk. afd.,somatiske sygehuse | C39: 0 | D39: 0 | E39: 0 | F39: 0
B40: I alt | C40: 0 | D40: 0 | E40: 0 | F40: 0
B42: Skema 5: Leasing- og huslejeudgifter. (1.000 kr.)
C43: 2023 | D43: 2022 | E43: 2021 | F43: 2020
B44: Andre udgifter | C44: 0 | D44: 0 | E44: 0 | F44: 0
B45: Leasing- og lejeudgifter | C45: 1519.61923 | D45: 1070.61471 | E45: 1678.593 | F45: 2139.399
B46: Huslejeudgifter | C46: 44623.20877 | D46: 40428.03169 | E46: 38391.239 | F46: 38405.69292
B47: I alt | C47: 46142.828 | D47: 41498.6464 | E47: 40069.832 | F47: 40545.09192
B49: Skema 6: Udgifter til andet end patientbehandling. (1.000 kr.)
C50: 2023 | D50: 2022 | E50: 2021 | F50: 2020
B51: Skema 6.1: Center for voldsramte (Bispebjerg) | C51: 0 | D51: 0 | E51: 0 | F51: 0
B52: Skema 6.2: Ventilatørbistand i hjemmet, respiratorpatienter | C52: 0 | D52: 0 | E52: 0 | F52: 0
B53: Skema 6.3: Blodprøvetagning i eget hjem | C53: 0 | D53: 0 | E53: 0 | F53: 0
B54: Skema 6.4: Psykinfo + pårørende | C54: 3293.99672 | D54: 2621.917 | E54: 2688.625 | F54: 2708.96
B55: Skema 6.5: Leveret udstyr til patienter i eget hjem, ilt og sonderemedier | C55: 0 | D55: 0 | E55: 0 | F55: 0
B56: Skema 6.6: Montebello (Nordsjællands Hospitaler) | C56: 0 | D56: 0 | E56: 0 | F56: 0
B57: Skema 6.7: Satspulje korrektioner mellem år | C57: 13715.09208 | D57: 13849.418 | E57: -18086.58417 | F57: -13647.69918
B58: Skema 6.8: Klinisk farmakologisk rådgivning af praksissektoren | C58: 0 | D58: 0 | E58: 0 | F58: 0
B59: Skema 6.9: Tandregulering ifm. operation | C59: 0 | D59: 0 | E59: 0 | F59: 0
B60: Skema 6.10: Giftlinjen | C60: 0 | D60: 0 | E60: 0 | F60: 0
B61: Skema 6.11: Tjenestemandspensioner | C61: 17149.11697 | D61: 15986.215 | E61: 15743.106 | F61: 16067.10516
B62: Skema 6.12: Art 4.6 Betalinger til staten | C62: 0 | D62: 0 | E62: 0 | F62: 0
B63: Skema 6.13: Art 4.7 Betalinger til kommuner | C63: 442.478 | D63: 479 | E63: 479 | F63: 479
B64: Skema 6.14: Art 4.8 Betalinger til andre regioner | C64: 37446.63926 | D64: 38478.656 | E64: 37474.06943 | F64: 36069.96543
B65: Skema 6.15: Art 7.6 Betalinger fra staten | C65: -35790.213 | D65: -27555.782 | E65: -18610.08129 | F65: -34844.33259
B66: Skema 6.16: Art 7.7 Betalinger fra kommuner | C66: -36865.94708 | D66: -43835.684 | E66: -40106.56807 | F66: -45944.04
B67: Skema 6.17: Art 7.8 Betalinger fra andre regioner | C67: -85105.166 | D67: -51181.816 | E67: -53463.65868 | F67: -49884.208
B68: Skema 6.18: Betalinger til selvejende, private og udenlandske sygehuse | C68: 1260.95491 | D68: 1353.37 | E68: 138.08 | F68: 1085.70006
B69: Skema 6.19: Dækningsafgift/ejendomsskat | C69: 1839.54521 | D69: 1872.937 | E69: 1841.51073 | F69: 1765.44649
B70: Skema 6.20: Forsikringer/erstatninger | C70: 13528.03553 | D70: 12110.676 | E70: 9599.42558 | F70: 5526.387
B71: Skema 6.21: Vederlagsfri Lab. –ydelser og andre ydelser til praksissektoren | C71: 0 | D71: 0 | E71: 0 | F71: 0
B72: Skema 6.22: Patienttransport | C72: 20.98142 | D72: 43.992 | E72: 179.012 | F72: 117.9079
B73: Skema 6.23: Serviceydelser til/fra andre institutioner eller sygehuse udenfor regionen | C73: 0 | D73: 0 | E73: 0 | F73: 0
B74: Skema 6.24: Udgifter til eksternt finansierede forskning | C74: 0 | D74: 0 | E74: 0 | F74: 0
B75: Skema 6.25: Forebyggelse rettet mod praksissektoren og kommuner | C75: 0 | D75: 0 | E75: 0 | F75: 0
B76: Skema 6.26: Praksisreservelæger | C76: 0 | D76: 0 | E76: 0 | F76: 0
B77: Skema 6.27: Præhospital | C77: 0 | D77: 0 | E77: 0 | F77: 0
B78: Skema 6.28: Udgifter til Danske Regioner (Kontigent, MedCom, Fællesproj.) | C78: 3409.83598 | D78: 3416.741 | E78: 3428.3 | F78: 4141.20642
B79: Skema 6.29: Hospice | C79: 0 | D79: 0 | E79: 0 | F79: 0
B80: Skema 6.30: Konsulenter(praksis) | C80: 1793.49435 | D80: 1834.678 | E80: 397.642 | F80: 345.149
B81: Skema 6.31: Videnskabsetisk Komité | C81: 0 | D81: 0 | E81: 0 | F81: 0
B82: Skema 6.32: Tolkebistand | C82: 1797.78564 | D82: 1704.401 | E82: 2384.945 | F82: 2841.32404
B83: Skema 6.33: Dansk Center for Partikelterapi | C83: 0 | D83: 0 | E83: 0 | F83: 0
B84: Skema 6.34: Politisk organisation – overførte udgifter fra funktion 4.10.01, 4.10.02 og 4.10.04 | C84: 1349.58971 | D84: 1337.359 | E84: 1367.069 | F84: 1139.14257
B85: Skema 6.35: Øvrige udgifter, Region Sjælland | C85: 0 | D85: 0 | E85: 0 | F85: 0
B86: Skema 6.36: Sundhedsydelser ifm. specialsektor | C86: 0 | D86: 0 | E86: 0 | F86: 0
B87: Skema 6.37: Udgifter til primær sundhed fra skema 2 | C87: 0 | D87: 0 | E87: 0 | F87: 0
B88: Skema 6.38: Udgifter til primær sundhed fra skema 3 | C88: 0 | D88: 0 | E88: 0 | F88: 0
B89: Skema 6.39: Særlige udgifter ifm. COVID-19 | C89: 0 | D89: 174.229 | E89: 689.78408 | F89: 4160
B90: Skema 6.40: Udleveret udstyr/tilbehør ifm. cochlear implantater | C90: 0 | D90: 0 | E90: 0 | F90: 0
B91: Skema 6.41: Luxturna-behandling, Rigshospitalet | C91: 0 | D91: 0 | E91: 0 | F91: 0
B92: Skema 6.42: Udleveret medicin | C92: 0 | D92: 0 | E92: 0 | F92: 0
B93: Skema 6.43: Udgifter ifm. sundhedsklynger | C93: 0 | D93: 0 | E93: 0 | F93: 0
B94: Skema 6.44: Ukrainske patienter under særlov eller asyl | C94: 0 | D94: 0 | E94: 0 | F94: 0
B95: Skema 6.45: Udgifter ifm. de særlige pladser i psykiatrien | C95: 28989.16401 | D95: 0 | E95: 0 | F95: 0
B96: Skema 6.46: Sikringsafdelingen, Region Sjælland | C96: 0 | D96: 0 | E96: 0 | F96: 0
B97: Skema 6.47: Øvrige (Kan kun benyttes efter aftale med Sundhedsdatastyrelsen) | C97: 0 | D97: 0 | E97: 0 | F97: 0
B98: Lukkede poster (må kun bruges af Sundhedsdatastyrelsen) | C98: 0 | D98: 0 | E98: 0 | F98: 0
B99: I alt | C99: -31724.61629 | D99: -27309.693 | E99: -53856.32339 | F99: -67872.9857

Sheet Rapport SGH
A1: 2023 | B1: Skema 1 | C1: Skema 2 | D1: Skema 3 | E1: Skema 4 | F1: Skema 5 | G1: Skema 6 | H1: Skema 7 | I1: I alt
A2: Region Midt, Voksen psykiatrien | B2: 1821074.704 | C2: 58670.99713 | D2: 36228.25873 | E2: 0 | F2: 41131.12247 | G2: -22367.28908 | H2: -35081.64913 | I2: =SUM(B2:D2)-SUM(E2:H2) -> 1932291.776
A3: Region Midt, Børn-unge psykiatrien | B3: 352588.9217 | C3: 11359.63482 | D3: 7014.365007 | E3: 0 | F3: 9.952123076 | G3: -569.3229349 | H3: -6792.363217 | I3: =SUM(B3:D3)-SUM(E3:H3) -> 378314.6555
A4: Ikke fordelte udgifter i Region Midt, psykiatri | B4: -25012.43691 | C4: 0 | D4: 21226.6062 | E4: 0 | F4: 5001.75341 | G4: -8788.00427 | H4: 0 | I4: 0.42015
A6: 2022
A7: Region Midt, Voksen psykiatrien | B7: 1745776 | C7: 57439.17183 | D7: 35337.6455 | E7: 0 | F7: 37013.9739 | G7: -38938.807 | H7: -34532.211 | I7: =SUM(B7:D7)-SUM(E7:H7) -> 1875009.861
A8: Region Midt, Børn-unge psykiatrien | B8: 346153 | C8: 11388.99802 | D8: 7006.758623 | E8: 0 | F8: 195.0369202 | G8: -4066.185 | H8: -6847.057 | I8: 375266.9617
A9: Ikke fordelte udgifter i Region Midt, psykiatri | B9: 94 | C9: 0 | D9: 19890.78069 | E9: 0 | F9: 4289.63558 | G9: 15695.299 | H9: 0 | I9: -0.15389

Sheet Afstemning af ikke fordelte
A1: Afstemning af Ikke fordelte indtægter- og udgifter
A2: 1.000 kr. | B2: 2023
A3: Skema 1 | B3: -25012.43691
A4: Skema 2 | B4: 0
A5: Skema 3 | B5: 21226.6062
A6: Skema 4 | B6: 0
A7: Skema 5 | B7: 5001.75341
A8: Skema 6 | B8: -8788.00427
A9: 1+2+3-4-5-6 | B9: =+B3+B4+B5-B6-B7-B8 -> 0.42015
